[Event "European Women-ch 2023"]
[Site "Petrovac"]
[Date "2023.03.23"]
[Round "6.25"]
[White "Sandu, Mihaela"]
[Black "Lomaia, Diana"]
[Result "1-0"]
[ECO "B48"]
[WhiteElo "2211"]
[BlackElo "1950"]
[Annotator "TA"]
[PlyCount "111"]
[EventDate "2023.03.15"]
[EventType "swiss"]
[EventCountry "MNE"]
[SourceTitle "playchess.com"]
[Source "ChessBase"]
[SourceQuality "1"]
[TimeControl "40/5400+30:1800+30"]

{[%evp 11,111,22,24,9,4,10,18,-13,0,-4,14,13,19,-32,31,31,121,123,137,120,108,75,158,105,175,181,176,153,266,283,362,348,347,268,329,174,158,123,143,126,154,173,152,173,166,127,148,132,135,132,161,145,237,220,214,190,285,300,267,237,360,366,353,358,347,289,268,283,280,268,429,439,424,245,227,227,227,227,245,226,245,245,247,247,280,280,405,405,435,247,543,280,485,470,1243,1091,1105,1096,964,991,29947,6428]} 1. e4 {[%emt 0:00:06]} c5 {[%emt 0:00:07]} 2. Nf3 {[%emt 0:00:05]} e6 {[%emt 0:00:07]} 3. d4 {[%emt 0:00:05]} cxd4 {[%emt 0:00:07]} 4. Nxd4 {[%emt 0:00:05]} Nc6 {[%emt 0:00:05]} 5. Nc3 {[%emt 0:00:08]} Qc7 {[%emt 0:00:18]} 6. Be3 {[%emt 0:00:58]} a6 {[%emt 0:00:32]} 7. g4 {[%emt 0:00:36] 7.g4 is the recent fashion. B48: Sicilian: Taimanov: 5 Nc3 Qc7 6 Be3 a6 without Be2.} b5 {[%emt 0:03:43]} 8. Nxc6 {[%emt 0:00:44]} Qxc6 {[%emt 0:01:06]} 9. Qd2 {[%emt 0:00:25] The position is equal.} Bb7 {[%emt 0:04:49]} 10. f3 {[%emt 0:04:30]} Rc8 {[%emt 0:09:54]} 11. O-O-O {[%emt 0:04:48]} Ne7 {[%emt 0:05:22] [#]} 12. Bd3 $146 {[%emt 0:32:43]} (12. Kb1 $11) ({Predecessor:} 12. Ne2 Ng6 13. Nd4 Qc7 14. Be2 Ne5 15. Kb1 Be7 16. h4 d5 17. Bf4 Bd6 18. Bh2 O-O 19. f4 Nc4 20. Bxc4 dxc4 21. Nxe6 {½-½ Brkic,A (2588)-Andreikin,D (2724) FRM-chT 29th 2021 (4)}) 12... b4 {[%emt 0:20:20]} (12... Ng6 $1 $15) 13. Ne2 $36 {[%emt 0:00:17][%mdl 2048] White is more active.} Qa4 {[%emt 0:01:54]} (13... Ng6 $14) 14. Kb1 $16 {[%emt 0:01:20]} d5 {[%emt 0:01:37]} 15. Nf4 {[%emt 0:07:21]} Ng6 {[%emt 0:08:38]} 16. b3 {[%emt 0:06:43]} Qa5 {[%emt 0:01:54] [#]} (16... Qd7 $142) 17. Bd4 {[%emt 0:09:34]} ({White should play} 17. Nh5 $1) 17... Rd8 {[%emt 0:15:45]} (17... e5 $2 18. Nxg6 hxg6 19. Bxe5 $18) (17... Be7 $16) 18. exd5 $18 {[%emt 0:07:48]} Nxf4 {[%emt 0:01:02]} 19. Qxf4 {[%emt 0:00:05] dxe6 would be deadly.} Bxd5 {[%emt 0:01:01]} (19... Qxd5 $16 20. Be4 Qd7) 20. Rhe1 {[%emt 0:02:16]} Bb7 {[%emt 0:06:32]} 21. Qe3 {[%emt 0:01:55]} Rd6 {[%emt 0:04:22] Dodges Bb6} 22. Bc5 {[%emt 0:09:37]} Rd5 {[%emt 0:05:40]} 23. Bb6 {[%emt 0:02:45]} (23. Bxf8 $142 Rxf8 24. Bc4 (24. Bxh7 Qc5 $16) 24... Rxd1+ 25. Rxd1) 23... Bc5 {[%emt 0:00:41]} 24. Bxa5 {[%emt 0:00:21]} Bxe3 {[%emt 0:00:09]} 25. Bxb4 {[%emt 0:01:59]} Bf2 {[%emt 0:01:32]} 26. Rf1 {[%emt 0:00:55]} Bc5 {[%emt 0:00:42]} 27. Bxc5 {[%emt 0:00:19]} Rxc5 {[%emt 0:00:07]} 28. b4 {[%emt 0:04:03]} Rc7 {[%emt 0:02:59]} 29. Kb2 {[%emt 0:00:55]} Ke7 {[%emt 0:00:15]} 30. c4 {[%emt 0:00:11]} a5 {[%emt 0:02:09]} 31. a3 {[%emt 0:00:15]} (31. bxa5 $6 Ra8 $11) 31... Rb8 {[%emt 0:01:10]} (31... g5 $16 32. Rf2 (32. bxa5 Rc5 $14) 32... h5) 32. Kc3 {[%emt 0:01:07]} (32. bxa5 $2 Bxf3+ 33. Kc3 Bxd1 34. Rxd1 Ra7 $19) 32... Rbc8 {[%emt 0:00:45]} 33. f4 {[%emt 0:00:41]} (33. bxa5 Bd5 $11) 33... Ba6 {[%emt 0:00:34]} (33... Bg2 {might work better.}) 34. c5 {[%emt 0:00:03]} (34. bxa5 Bxc4 35. Bxc4 Rxc4+ 36. Kb3 Rc3+ 37. Kb4 R3c4+ 38. Kb5 R4c5+ 39. Kb6 R5c6+ 40. Kb7 (40. Kb5 Rc5+ 41. Kb6 R5c6+ 42. Kb7 R6c7+ 43. Kb6 Rc6+ $11) 40... R6c7+ 41. Kb6 Rc6+ 42. Kb7 (42. Kb5 Rc5+ 43. Kb6 R5c6+ $11) 42... R6c7+ 43. Kb6 Rc6+ $11) (34. Bxh7 $2 axb4+ 35. Kb2 g6 $19) 34... Bb7 {[%emt 0:00:48]} 35. Bc4 {[%emt 0:00:10] Strongly threatening f5.} (35. bxa5 Rxc5+ 36. Kb4 Bd5 $16) (35. Bxh7 $6 Rh8 $16) 35... Be4 {[%emt 0:00:33]} (35... Ra8 $142 36. Bb3 Ra6) 36. Rd4 {[%emt 0:00:28]} (36. bxa5 $2 Rxc5 37. Rd4 Bd5 $19) 36... Bg2 {[%emt 0:00:12]} 37. Rf2 {[%emt 0:00:12]} Bb7 {[%emt 0:00:09]} 38. g5 {[%emt 0:00:40]} ({Not} 38. bxa5 Rxc5 39. Kb4 Bd5 $16) 38... g6 {[%emt 0:00:55]} 39. Rfd2 {[%emt 0:00:16]} ({Don't play} 39. bxa5 $6 Rxc5 40. Kb4 Bd5 $16) 39... axb4+ {[%emt 0:00:18]} 40. axb4 {[%emt 0:00:00]} Ra8 $2 {[%emt 0:00:00]} (40... Bc6 {was necessary.} 41. b5 Bxb5 {[%mdl 64] Decoy} 42. Bxb5 Rxc5+ 43. Rc4 Rxc4+ 44. Bxc4 Rc7) 41. b5 {[%emt 0:02:34] [#] Black must now prevent b6.} Rac8 {[%emt 0:09:56]} 42. c6 {[%emt 0:02:39]} (42. Kb4 $142) 42... Bxc6 {[%emt 0:00:33]} 43. bxc6 {[%emt 0:00:08]} Rxc6 {[%emt 0:00:05]} 44. h4 {[%emt 0:05:52]} Rc5 {[%emt 0:04:53]} 45. Kb4 {[%emt 0:00:40]} Rf5 {[%emt 0:01:19]} 46. Ra2 {[%emt 0:02:57]} Rb8+ {[%emt 0:00:22]} 47. Kc3 {[%emt 0:00:11] And now Ra7+ would win.} Kf8 {[%emt 0:00:43]} 48. Ra7 {[%emt 0:00:29]} Rc5 {[%emt 0:01:51]} (48... Rc8 $142 49. Kd2 Rfc5) 49. Kd3 {[%emt 0:00:49] Rdd7 is the strong threat.} Rbc8 {[%emt 0:00:49]} 50. Ba6 {[%emt 0:03:56]} (50. Rdd7 $142 Rxc4 51. Rxf7+ Kg8 52. Rg7+ (52. Rxh7 Rxf4 53. Rag7+ Kf8 $18) 52... Kh8 53. Rxh7+ Kg8 54. Rag7+ Kf8 55. Rf7+ Kg8 56. Rhg7+ Kh8 57. Rxg6) 50... Rb8 $2 {[%emt 0:01:46]} (50... R5c7 {was called for.} 51. Rb7 Rxb7) 51. Ke4 {[%emt 0:01:34] Threatens to win with Rdd7.} Rf5 $2 {[%emt 0:02:03]} (51... Ra5 52. Rdd7 Kg8) 52. Bd3 {[%emt 0:00:35]} Re8 {[%emt 0:02:50]} (52... Kg8 $142 53. Rdd7 Rf8) 53. Kf3 {[%emt 0:00:32]} e5 {[%emt 0:00:45]} 54. Bxf5 {[%emt 0:00:08] White wants to mate with Rdd7.} exd4 {[%emt 0:00:06]} 55. Be4 {[%emt 0:00:18] Ra8 would kill now.} Rd8 {[%emt 0:00:08]} 56. Ra8 {[%emt 0:02:29] Weighted Error Value: White=0.33/Black=0.54} 1-0

[Event "European Women-ch 2023"]
[Site "Petrovac"]
[Date "2023.03.23"]
[Round "6.25"]
[White "Saraci, Rinesa"]
[Black "Buchholz, Maja Patricia"]
[Result "0-1"]
[ECO "A45"]
[WhiteElo "1503"]
[BlackElo "1883"]
[Annotator "NA RC COMBH"]
[PlyCount "88"]
[EventDate "2023.03.15"]
[EventType "swiss"]
[EventCountry "MNE"]
[SourceTitle "playchess.com"]
[Source "ChessBase"]
[SourceQuality "1"]
[TimeControl "40/5400+30:1800+30"]

1. d4 {[%emt 0:00:03]} Nf6 {[%emt 0:02:38]} 2. Bf4 {[%emt 0:00:25]} b6 {[%emt 0:02:41]} 3. e3 {[%emt 0:01:32]} Bb7 {[%emt 0:00:23]} 4. Nc3 {[%emt 0:04:10]} d6 {[%emt 0:06:32]} 5. Nf3 {[%emt 0:01:33]} c5 {[%emt 0:02:06]} 6. Bb5+ {[%emt 0:08:39]} Nbd7 {[%emt 0:01:00]} 7. O-O {[%emt 0:06:33]} g6 {[%emt 0:00:56]} 8. h3 {[%emt 0:03:57]} Bg7 {[%emt 0:00:38]} 9. Be2 {[%emt 0:02:21]} O-O {[%emt 0:01:57]} 10. Nd2 {[%emt 0:07:37]} e5 {[%emt 0:13:21]} 11. dxe5 {[%emt 0:02:37]} Nxe5 {[%emt 0:02:22]} 12. Nf3 {[%emt 0:08:10]} Qe7 {[%emt 0:03:15]} 13. Nb5 {[%emt 0:06:59]} Rad8 {[%emt 0:04:10]} 14. a4 {[%emt 0:02:20]} a6 {[%emt 0:02:53]} 15. Nc3 {[%emt 0:01:57]} Rfe8 {[%emt 0:05:34]} 16. Bg5 {[%emt 0:05:36]} d5 {[%emt 0:05:15]} 17. Qc1 {[%emt 0:07:49]} d4 {[%emt 0:06:57]} 18. Nxe5 {[%emt 0:03:54]} Qxe5 {[%emt 0:06:07]} 19. Bf4 {[%emt 0:01:08]} Qe6 {[%emt 0:00:43]} 20. Nd1 {[%emt 0:05:10]} Nd5 {[%emt 0:00:54]} 21. Bg5 {[%emt 0:04:17]} f6 {[%emt 0:01:41]} 22. Bg4 {[%emt 0:01:01]} Qc6 {[%emt 0:02:58]} 23. Bh4 {[%emt 0:02:07]} Nf4 {[%emt 0:11:23]} 24. Bf3 {[%emt 0:00:28]} Ne2+ {[%emt 0:00:03]} 25. Kh2 {[%emt 0:00:50]} Qxf3 {[%emt 0:02:19]} 26. gxf3 {[%emt 0:00:08]} Nxc1 {[%emt 0:00:04]} 27. Rxc1 {[%emt 0:00:07]} Bxf3 {[%emt 0:00:32]} 28. b3 {[%emt 0:03:32]} Rd7 {[%emt 0:03:56]} 29. exd4 {[%emt 0:01:52]} Rxd4 {[%emt 0:01:58]} 30. Bg3 {[%emt 0:00:07]} Bh6 {[%emt 0:00:57]} 31. Rb1 {[%emt 0:01:57]} Rd7 {[%emt 0:02:42]} 32. Nb2 {[%emt 0:01:30]} f5 {[%emt 0:02:02]} 33. Kg1 {[%emt 0:00:45]} f4 {[%emt 0:01:18]} 34. Bh2 {[%emt 0:00:13]} g5 {[%emt 0:01:29]} 35. Nc4 {[%emt 0:01:00]} b5 {[%emt 0:00:45]} 36. Nb2 {[%emt 0:00:52]} Re2 {[%emt 0:01:09]} 37. axb5 {[%emt 0:01:45]} axb5 {[%emt 0:00:08]} 38. c4 {[%emt 0:01:15]} Bg7 {[%emt 0:00:57]} 39. Rbd1 {[%emt 0:02:59]} Rxd1 {[%emt 0:00:29]} 40. Nxd1 {[%emt 0:00:00]} b4 {[%emt 0:00:00]} 41. h4 {[%emt 0:02:19]} h6 {[%emt 0:00:33]} 42. hxg5 {[%emt 0:02:29]} hxg5 {[%emt 0:00:06]} 43. Ne3 {[%emt 0:01:42]} fxe3 {[%emt 0:00:17]} 44. fxe3 {[%emt 0:00:06]} Rg2+ {[%emt 0:00:06]} 0-1

[Event "European Women-ch 2023"]
[Site "Petrovac"]
[Date "2023.03.23"]
[Round "6.26"]
[White "Stefanova, Antoaneta"]
[Black "Paasikangas, Johanna"]
[Result "1-0"]
[ECO "D46"]
[WhiteElo "2435"]
[BlackElo "2115"]
[Annotator "TA"]
[PlyCount "101"]
[EventDate "2023.03.15"]
[EventType "swiss"]
[EventCountry "MNE"]
[SourceTitle "playchess.com"]
[Source "ChessBase"]
[SourceQuality "1"]
[TimeControl "40/5400+30:1800+30"]

{[%evp 20,101,11,25,25,-36,-24,-41,-36,-32,-30,-37,-35,-51,-20,-21,0,0,0,0,0,0,0,0,0,0,0,-9,0,-17,0,-16,-6,-41,-35,-43,-12,-12,0,0,0,0,0,0,13,6,13,13,38,35,102,108,294,285,348,355,431,420,586,236,225,209,210,207,223,214,244,227,389,405,563,558,609,587,983,981,933,916,2193,2172,6113,5908,6160,6101]} 1. d4 {[%emt 0:03:31]} d5 {[%emt 0:00:08]} 2. c4 {[%emt 0:03:45]} e6 {[%emt 0:00:48]} 3. Nf3 {[%emt 0:08:43]} Nf6 {[%emt 0:01:39]} 4. Nc3 {[%emt 0:05:00]} c6 {[%emt 0:04:11]} 5. e3 {[%emt 0:02:19]} Bd6 {[%emt 0:01:56]} 6. Bd3 {[%emt 0:05:58]} O-O {[%emt 0:03:36]} 7. O-O {[%emt 0:01:44]} Nbd7 {[%emt 0:01:40][%cal Bb8d7,Bd7e5,Be5g6][%mdl 32]} 8. e4 {[%emt 0:02:57]} dxc4 {[%emt 0:06:27]} 9. Bxc4 {[%emt 0:00:11]} e5 {[%emt 0:00:37]} 10. Bg5 {[%emt 0:05:08]} h6 {[%emt 0:06:40]} 11. Bh4 {[%emt 0:00:51]} exd4 {[%emt 0:08:35] D46: Semi-Slav: 5 e3 Nbd7 6 Bd3, Black avoids the Meran.} 12. Nxd4 {[%emt 0:04:32]} ({White should try} 12. Qxd4 $11 Qe7 13. Bxf6 Qxf6 14. Qxf6 gxf6 15. Rfd1) 12... Ne5 {[%emt 0:03:16]} 13. Be2 {[%emt 0:03:15]} Ng6 {[%emt 0:02:36] Black is slightly better.} 14. Bg3 {[%emt 0:00:38]} Bxg3 {[%emt 0:01:15]} 15. hxg3 {[%emt 0:00:07] [#]} ({But not} 15. fxg3 Re8 $17) 15... Qb6 $146 {[%emt 0:01:23] [#] Threatens to win with ...Rd8.} ({Predecessor:} 15... Re8 16. Bf3 Ne5 17. Nb3 Qe7 18. Qc2 Nfg4 19. Bxg4 Nxg4 20. Rfe1 Be6 21. Nd4 Rad8 22. Nxe6 Qxe6 {½-½ Kuznetsov,M (2196)-Obrezchikov,M (1983) Moscow op-B 2009 (5)}) 16. Nb3 {[%emt 0:16:49]} Be6 {[%emt 0:06:50]} 17. Qd4 {[%emt 0:06:20]} Bxb3 {[%emt 0:04:40]} 18. Qxb6 {[%emt 0:00:05]} axb6 {[%emt 0:00:07]} 19. axb3 {[%emt 0:00:02]} b5 {[%emt 0:01:58]} 20. b4 {[%emt 0:11:33]} Nd7 {[%emt 0:06:09]} 21. f4 {[%emt 0:02:18]} Nb6 {[%emt 0:00:29]} 22. Kf2 {[%emt 0:02:50]} Rfd8 {[%emt 0:04:50]} 23. Ke3 {[%emt 0:01:16]} Kf8 {[%emt 0:00:34]} 24. Ra5 {[%emt 0:04:05]} Ke7 {[%emt 0:02:47]} 25. Rfa1 {[%emt 0:01:42]} Rab8 {[%emt 0:02:45]} 26. Ra7 {[%emt 0:01:17]} Nf8 {[%emt 0:01:10]} 27. Rd1 {[%emt 0:01:19]} Rxd1 {[%emt 0:01:55]} 28. Nxd1 {[%emt 0:00:04]} Na4 {[%emt 0:01:08]} 29. b3 {[%emt 0:00:38]} Nb6 {[%emt 0:00:05][%cal Of7f5]} 30. Nf2 {[%emt 0:00:22]} Kd6 {[%emt 0:08:51]} 31. Nd3 {[%emt 0:00:31]} Nfd7 {[%emt 0:02:20] Against Nc5} 32. Bg4 {[%emt 0:00:42]} f6 {[%emt 0:03:44]} 33. Kd4 {[%emt 0:00:31] [#] Nc5 is the strong threat.} Nc8 {[%emt 0:00:54]} 34. Ra1 {[%emt 0:00:16]} b6 {[%emt 0:00:42]} (34... Nf8 $14) 35. e5+ $16 {[%emt 0:00:52]} fxe5+ $2 {[%emt 0:00:57] Black cannot hold the game after this.} (35... Kc7 $16 {was worth a try.} 36. Ke4 Rb7) 36. fxe5+ $18 {[%emt 0:00:10]} Ke7 {[%emt 0:00:25]} 37. Nf4 {[%emt 0:01:25]} Ke8 {[%emt 0:03:57]} 38. Nh5 {[%emt 0:01:50]} g6 {[%emt 0:01:00]} 39. Nf6+ {[%emt 0:02:56]} (39. e6 $142 Nf8 40. Nf6+ Kd8 41. Ke5) 39... Nxf6 {[%emt 0:00:30]} 40. exf6 {[%emt 0:00:00][%mdl 4096] Endgame KRB-KRN} Nd6 {[%emt 0:00:00]} 41. Rc1 {[%emt 0:21:44]} Rd8 {[%emt 0:11:51]} 42. Rxc6 {[%emt 0:00:06][%cal Og4e6] Be6! would be deadly.} Nf7+ {[%emt 0:01:02]} 43. Ke3 {[%emt 0:02:43]} Ng5 $2 {[%emt 0:03:31]} (43... Rd3+ 44. Kxd3 Ne5+ 45. Kc3 Nxc6) 44. Be2 {[%emt 0:01:08]} ({Weaker is} 44. Rxb6 Kf7 45. Rxb5 Re8+ 46. Kd3 Rd8+ 47. Ke3 Re8+ 48. Kd3 Rd8+ 49. Kc4 Rd2 $18) 44... Rd5 {[%emt 0:00:46]} 45. Bd3 {[%emt 0:00:31] White is clearly winning.} Kf7 {[%emt 0:00:54]} 46. Rxb6 {[%emt 0:00:06]} Ne6 {[%emt 0:01:15]} 47. Bxb5 {[%emt 0:01:32]} Re5+ {[%emt 0:00:12]} 48. Kd3 {[%emt 0:02:13] Strongly threatening Bc4.} Rg5 {[%emt 0:01:20]} 49. Bc4 {[%emt 0:00:51]} Rxg3+ {[%emt 0:00:05]} 50. Ke4 {[%emt 0:01:08]} Kxf6 {[%emt 0:01:56]} 51. Rxe6+ {[%emt 0:01:08] Weighted Error Value: White=0.16 (very precise) /Black=0.37} 1-0

[Event "European Women-ch 2023"]
[Site "Petrovac"]
[Date "2023.03.23"]
[Round "6.27"]
[White "Abdinova, Narmin"]
[Black "Velikic, Adela"]
[Result "1-0"]
[ECO "D30"]
[WhiteElo "2090"]
[BlackElo "2329"]
[Annotator "TA"]
[PlyCount "59"]
[EventDate "2023.03.15"]
[EventType "swiss"]
[EventCountry "MNE"]
[SourceTitle "playchess.com"]
[Source "ChessBase"]
[SourceQuality "1"]
[TimeControl "40/5400+30:1800+30"]

{[%evp 11,59,0,0,7,31,27,25,21,34,28,38,14,25,27,38,33,31,29,76,72,69,69,61,57,69,20,48,38,116,79,91,60,112,100,63,-1,0,-22,363,346,429,397,427,416,1307,1478,29983,29984,29984,29985]} 1. d4 {[%emt 0:08:46]} d5 {[%emt 0:00:02][%cal Bd7d5,Bd5c4][%mdl 32]} 2. c4 {[%emt 0:00:08]} e6 {[%emt 0:00:05]} 3. Nf3 {[%emt 0:00:10]} c6 {[%emt 0:00:11]} 4. g3 {[%emt 0:00:21]} dxc4 {[%emt 0:00:07]} 5. Bg2 {[%emt 0:00:43]} b5 {[%emt 0:00:10]} 6. O-O {[%emt 0:00:08]} Bb7 {[%emt 0:00:10]} 7. Ne5 {[%emt 0:00:41]} Qc8 {[%emt 0:04:22]} 8. b3 {[%emt 0:01:23]} cxb3 $1 {[%emt 0:06:33]} 9. axb3 {[%emt 0:00:56] White has an edge.} Nd7 {[%emt 0:10:49]} 10. Nc3 {[%emt 0:01:14][%cal Bb1c3,Bc3e4,Be4d6][%mdl 32]} Ngf6 {[%emt 0:04:01]} 11. Bg5 {[%emt 0:00:11]} Nxe5 {[%emt 0:25:49]} 12. dxe5 {[%emt 0:02:22]} Nd5 {[%emt 0:03:55]} 13. Ne4 {[%emt 0:15:09]} h6 {[%emt 0:04:46]} 14. Bd2 {[%emt 0:15:15]} Qc7 {[%emt 0:05:37] [#]} (14... Qb8 $11) 15. Nd6+ $1 $16 {[%emt 0:00:24]} Bxd6 {[%emt 0:00:34]} 16. Ba5 {[%emt 0:00:50]} Qd7 {[%emt 0:02:00]} 17. exd6 {[%emt 0:00:05]} c5 {[%emt 0:09:25]} (17... Qxd6 $2 18. e4 $18) 18. e4 {[%emt 0:13:19]} (18. Rc1 $1 $14 {feels stronger.}) 18... Nf6 {[%emt 0:04:49]} 19. Bc3 {[%emt 0:03:10]} a6 {[%emt 0:08:54]} (19... O-O $14) 20. Qc2 {[%emt 0:05:41]} Rc8 {[%emt 0:00:48]} (20... Qxd6 $2 21. e5 Qb8 22. exf6 $18) 21. Qb2 {[%emt 0:13:02] White is more active.} (21. Qd2 {looks sharper.} Nxe4 22. Bxe4 Bxe4 23. Bxg7 Rg8 24. Be5) 21... Nxe4 {[%emt 0:01:32]} (21... O-O $1 $14) 22. Bxe4 {[%emt 0:04:25]} Bxe4 {[%emt 0:00:10]} 23. Rxa6 {[%emt 0:00:12]} (23. Bxg7 $14 Rg8 24. Rxa6) 23... f6 $11 {[%emt 0:02:08]} 24. Qe2 {[%emt 0:00:30]} Bf5 {[%emt 0:03:48][%mdl 8192] [#] Black is weak on the dark squares. This move loses the game for Black.} (24... Bb7 $11 {and Black is okay.} 25. Qh5+ Kf8) 25. g4 $1 $18 {[%emt 0:00:51]} Bg6 {[%emt 0:00:09] [#]} 26. Ra7 $3 {[%emt 0:01:12][%mdl 576] Skewer} Qxd6 {[%emt 0:01:01] Hoping for ...0-0.} (26... Qxa7 $2 27. Qxe6+ (27. Qxb5+ $2 {too greedy.} Qd7 $19) 27... Kf8 28. Qxc8+ Kf7 29. Qxh8 $18) (26... Bd3 27. Rxd7) 27. Qxb5+ {[%emt 0:00:48]} ({Don't play} 27. Rd1 Qc6 $18) 27... Kf8 {[%emt 0:00:20]} (27... Qc6 $142 28. Qxc6+ {[%mdl 64] Remove Defender, Deflection} Rxc6 29. Ra8+ {[%mdl 64] Skewer} (29. Rxg7 Be4 $16) 29... Kf7 30. Rxh8 Bc2) 28. Qb7 {[%emt 0:00:17][%csl LRc8,LRg7]} Rh7 {[%emt 0:00:49]} 29. Qxc8+ {[%emt 0:00:16]} Be8 {[%emt 0:00:02]} 30. Bxf6 {[%emt 0:02:13] Excellently played by Abdinova!   Weighted Error Value: White=0.12 (very precise) /Black=0.62} 1-0